fUST/lending_fUST_20250702
["ID","MTS","AMOUNT","RATE_DAILY","PERIOD"]
[368999565,1751429454807,-637.91,0.00019535,2]
[368999566,1751429454816,-1601.06,0.00019536,2]
[368999567,1751429454826,-485.33,0.00019536,2]
[368999568,1751429454835,-460.0,0.00019536,2]
[368999569,1751429454845,-151.0,0.00019537,2]
[368999570,1751429454854,-151.0,0.00019537,2]
[368999571,1751429454864,-151.0,0.00019537,2]
[368999572,1751429454874,-460.0,0.00019537,2]
[368999573,1751429454883,-749.69,0.00019537,2]
[368999574,1751429454895,-460.0,0.00019537,2]
[368999575,1751429454904,-460.0,0.00019537,2]
[368999576,1751429454914,-460.0,0.00019537,2]
[368999577,1751429454924,-460.0,0.00019537,2]
[368999578,1751429454935,-460.0,0.00019537,2]
[368999579,1751429454944,-460.0,0.00019537,2]
[368999580,1751429454954,-486.75,0.00019538,2]
[368999581,1751429454963,-1295.38,0.00019538,2]
[368999582,1751429454974,-1459.66,0.00019538,2]
[368999583,1751429454984,-460.0,0.00019538,2]
[368999584,1751429454993,-460.0,0.00019538,2]
[368999585,1751429455003,-460.0,0.00019538,2]
[368999586,1751429455012,-590.97,0.00019538,2]
[368999587,1751429455022,-522.74,0.00019633,2]
[368999588,1751429455032,-460.0,0.00019633,2]
[368999589,1751429455042,-1942.10806907,0.00019693,2]
[368999590,1751429455051,-460.0,0.0001979,2]
[368999591,1751429455062,-636.07,0.00019809,2]
[368999592,1751429455071,-792.04,0.00019809,2]
[368999593,1751429455081,-460.0,0.00019809,2]
[368999594,1751429455090,-460.0,0.00019809,2]
[368999595,1751429455100,-637.91,0.00019809,2]
[368999596,1751429455110,-1601.06,0.0001981,2]
[368999597,1751429455119,-485.33,0.0001981,2]
[368999598,1751429455129,-460.0,0.0001981,2]
[368999599,1751429455138,-460.0,0.00019811,2]
[368999600,1751429455147,-749.69,0.00019811,2]
[368999601,1751429455157,-550.03,0.00019811,2]
[368999602,1751429455167,-460.0,0.00019811,2]
[368999603,1751429455177,-460.0,0.00019811,2]
[368999604,1751429455187,-460.0,0.00019811,2]
[368999605,1751429455196,-460.0,0.00019811,2]
[368999606,1751429455206,-486.75,0.00019812,2]
[368999607,1751429455216,-1295.38,0.00019812,2]
[368999608,1751429455225,-1459.66,0.00019812,2]
[368999609,1751429455234,-460.0,0.00019812,2]
[368999610,1751429455243,-460.0,0.00019812,2]
[368999611,1751429455253,-460.0,0.00019812,2]
[368999612,1751429455263,-590.97,0.00019812,2]
[368999613,1751429455271,-522.74,0.00019907,2]
[368999614,1751429455281,-460.0,0.00019907,2]
[368999615,1751429455291,-500.13,0.0002,2]
[368999616,1751429455301,-1942.10806907,0.00020003,2]
[368999617,1751429455310,-205.377939,0.00020004,2]
[368999618,1751429455320,-205.377939,0.00020004,2]
[368999619,1751429455330,-207.93081835,0.00020061,2]
[368999620,1751429455340,-539.34,0.00020064,2]
[368999621,1751429455349,-636.07,0.00020083,2]
[368999622,1751429455359,-792.04,0.00020083,2]
[368999623,1751429455368,-460.0,0.00020083,2]
[368999624,1751429455378,-152.59265808,0.00020083,2]
[368999625,1751429455388,-637.91,0.00020083,2]
[368999626,1751429455397,-1601.06,0.00020084,2]
[368999627,1751429455407,-485.33,0.00020084,2]
[368999628,1751429455416,-173.6863798,0.00020084,2]
[368999629,1751429455426,-460.0,0.00020085,2]
[368999630,1751429455436,-749.69,0.00020085,2]
[368999631,1751429455445,-460.0,0.00020085,2]
[368999632,1751429455455,-460.0,0.00020085,2]
[368999633,1751429455465,-460.0,0.00020085,2]
[368999634,1751429455475,-608.79,0.00020085,2]
[368999635,1751429455484,-486.75,0.00020086,2]
[368999636,1751429455494,-1295.38,0.00020086,2]
[368999637,1751429455503,-1459.66,0.00020086,2]
[368999638,1751429455513,-460.0,0.00020086,2]
[368999639,1751429455523,-460.0,0.00020086,2]
[368999640,1751429455532,-460.0,0.00020086,2]
[368999641,1751429455541,-590.97,0.00020086,2]
[368999642,1751429455558,-522.74,0.00020181,2]
[368999643,1751429455572,-460.0,0.00020181,2]
[368999644,1751429455582,-308.479989,0.00020187,2]
[368999645,1751429455592,-381.21193227,0.00020268,2]
[368999646,1751429455602,-151.0,0.00020286,2]
[368999647,1751429455612,-500.0,0.00020286,2]
[368999648,1751429455622,-151.0,0.00020286,2]
[368999649,1751429455632,-151.0,0.00020286,2]
[368999650,1751429455642,-500.0,0.00020286,2]
[368999651,1751429455652,-151.0,0.00020286,2]
[368999652,1751429455663,-151.0,0.00020286,2]
[368999653,1751429455673,-151.0,0.00020313,2]
[368999654,1751429455682,-500.0,0.00020313,2]
[368999655,1751429455694,-151.0,0.00020313,2]
[368999656,1751429455704,-151.0,0.00020313,2]
[368999657,1751429455714,-533.37485351,0.00020313,2]
[368999658,1751429455724,-151.0,0.00020313,2]
[368999659,1751429455734,-151.0,0.00020313,2]
[368999660,1751429455744,-1942.10806907,0.00020314,3]
[368999661,1751429455754,-184.73226882,0.00020341,2]
[368999662,1751429455764,-446.83593212,0.00020341,2]
[368999663,1751429455774,-151.0,0.00020341,2]
[368999664,1751429455784,-151.0,0.00020341,2]
[368999665,1751429455794,-151.0,0.00020341,2]
[368999666,1751429455804,-199.39485306,0.00020341,2]
[368999667,1751429455814,-636.07,0.00020356,2]
[368999668,1751429455825,-792.04,0.00020356,2]
[368999669,1751429455835,-460.0,0.00020356,2]
[368999670,1751429455847,-637.91,0.00020356,2]
[368999671,1751429455857,-1601.06,0.00020358,2]
[368999672,1751429455867,-485.33,0.00020358,2]
[368999673,1751429455877,-507.59041278,0.00020359,2]
[368999674,1751429455887,-749.69,0.00020359,2]
[368999675,1751429455902,-460.0,0.00020359,2]
[368999676,1751429455913,-460.0,0.00020359,2]
[368999677,1751429455923,-515.56961407,0.00020359,2]
[368999678,1751429455934,-486.75,0.0002036,2]
[368999679,1751429456046,-1295.38,0.0002036,2]
[368999680,1751429456068,-1459.66,0.0002036,2]
[368999681,1751429456078,-460.0,0.0002036,2]
[368999682,1751429456087,-460.0,0.0002036,2]
[368999683,1751429456098,-460.0,0.0002036,2]
[368999684,1751429456107,-590.97,0.0002036,2]
[368999685,1751429456117,-199.55552718,0.00020368,2]
[368999686,1751429456126,-199.03225249,0.00020368,2]
[368999687,1751429456136,-151.0,0.00020368,2]
[368999688,1751429456147,-280.16192705,0.00020396,2]
[368999689,1751429456159,-522.74,0.00020455,2]
[368999690,1751429456168,-460.0,0.00020455,2]
[368999691,1751429456178,-161.190978,0.00020555,2]
[368999692,1751429456188,-594.745,0.00020607,2]
[368999693,1751429456197,-178.16484544,0.00020607,2]
[368999694,1751429456207,-1942.10806907,0.00020624,3]
[368999695,1751429456216,-636.07,0.0002063,2]
[368999696,1751429456226,-792.04,0.0002063,2]
[368999697,1751429456235,-460.0,0.0002063,2]
[368999698,1751429456245,-637.91,0.0002063,2]
[368999699,1751429456254,-1601.06,0.00020632,2]
[368999700,1751429456264,-485.33,0.00020632,2]
[368999701,1751429456274,-154.406951,0.00020633,2]
[368999702,1751429456284,-154.406951,0.00020633,2]
[368999703,1751429456294,-749.69,0.00020633,2]
[368999704,1751429456303,-460.0,0.00020633,2]
[368999705,1751429456313,-460.0,0.00020633,2]
[368999706,1751429456326,-486.75,0.00020634,2]
[368999707,1751429456335,-1295.38,0.00020634,2]
[368999708,1751429456346,-1459.66,0.00020634,2]
[368999709,1751429456355,-460.0,0.00020634,2]
[368999710,1751429456365,-460.0,0.00020634,2]
[368999711,1751429456375,-460.0,0.00020634,2]
[368999712,1751429456386,-590.97,0.00020634,2]
[368999713,1751429456395,-522.74,0.00020729,2]
[368999714,1751429456406,-152.97776085,0.00020729,2]
[368999715,1751429456416,-527.22,0.000208,2]
[368999716,1751429456426,-151.0,0.000208,3]
[368999717,1751429456436,-205.377939,0.00020857,2]
[368999718,1751429456446,-205.377939,0.00020857,2]
[368999719,1751429456456,-1600.27589521,0.000209,2]
[368999720,1751429456466,-636.07,0.00020904,2]
[368999721,1751429456476,-792.04,0.00020904,2]
[368999722,1751429456487,-460.0,0.00020904,2]
[368999723,1751429456496,-637.91,0.00020904,2]
[368999724,1751429456505,-1601.06,0.00020906,2]
[368999725,1751429456515,-485.33,0.00020906,2]
[368999726,1751429456524,-749.69,0.00020907,2]
[368999727,1751429456534,-440.27323872,0.00020907,2]
[368999728,1751429456677,-19.72676128,0.00020907,2]
[368999729,1751429456687,-460.0,0.00020907,2]
[368999730,1751429456696,-185.81323872,0.00020908,2]
[368999731,1751429456708,-300.93676128,0.00020908,2]
[368999732,1751429456717,-1295.38,0.00020908,2]
[368999733,1751429456726,-1459.66,0.00020908,2]
[368999734,1751429456736,-460.0,0.00020908,2]
[368999735,1751429456745,-460.0,0.00020908,2]
[368999736,1751429456755,-460.0,0.00020908,2]
[368999737,1751429456765,-590.97,0.00020908,2]
[368999738,1751429456774,-1942.10806907,0.00020934,4]
[368999739,1751429456783,-522.74,0.00021003,2]
[368999740,1751429456792,-258.643165,0.00021005,2]
[368999741,1751429456802,-672.482772,0.00021005,2]
[368999742,1751429456811,-672.482772,0.00021005,2]
[368999743,1751429456821,-5000.0,0.00021084,2]
[368999744,1751429456830,-207.4,0.00021084,2]
[368999745,1751429456839,-591.16092905,0.00021084,2]
[368999746,1751429456851,-908.83907095,0.00021084,2]
[368999747,1751429456861,-489.23781214,0.00021084,2]
[368999748,1751429456872,-1010.76218786,0.00021084,2]
[368999749,1751429456881,-1317.78862715,0.00021084,2]
[368999750,1751429456894,-182.21137285,0.00021084,2]
[368999751,1751429456906,-1500.0,0.00021084,2]
[368999752,1751429456915,-667.78862716,0.00021084,2]
[368999753,1751429457069,-461.73019068,0.00016798,2]
[368999754,1751429457079,-509.95,0.00019537,2]
[368999755,1751429457089,-467.96194314,0.00021084,2]
[368999756,1751429457254,-409.0006823,0.00019535,2]
[368999757,1751429537410,-300.0,0.00016553,2]
[368999758,1751429615279,230.0,0.00025131,60]
[368999760,1751429669846,-160.0,0.00016186,2]
[368999762,1751429927302,-27.81402107,0.00016186,2]
[368999763,1751429927323,-6.15357191,0.00016553,2]
[368999764,1751429927343,-323.03240702,0.00016573,2]
[368999765,1751430019313,7788.0,0.00017,7]
[368999766,1751430058025,242.424092,0.00015692,2]
[368999768,1751430112265,303.306928,0.00013699,2]
[368999771,1751430182646,-296.92422535,0.00016407,2]
[368999772,1751430186127,-180.17656023,0.00016407,2]
[368999773,1751430189725,-113.67992557,0.00016407,2]
[368999774,1751430305679,-179.48351142,0.00016407,2]
[368999775,1751430310234,-188.19818805,0.00016407,2]
[368999776,1751430313861,-309.87407811,0.00016407,2]
[368999777,1751430317630,-178.10983076,0.00016407,2]
[368999778,1751430319689,-4144.33439166,0.00016407,2]
[368999779,1751430319710,-4.66560834,0.00016573,2]
[368999780,1751430354098,-849.56859533,0.00016407,2]
[368999781,1751430354447,-392.37489393,0.00016407,2]
[368999782,1751430354473,-13.53805663,0.00016573,2]
[368999783,1751430354500,-240.7148064,0.00016595,2]
[368999784,1751430354526,-30.04526345,0.00016596,2]
[368999785,1751430436088,-464.01054512,0.00016506,2]
[368999786,1751430438587,-328.25152243,0.00016506,2]
[368999787,1751430445087,-351.32281231,0.00016506,2]
[368999788,1751430453099,-900.45908013,0.00016506,2]
[368999789,1751430454107,-1274.94594302,0.00016506,2]
[368999790,1751430454132,-640.1103581,0.00016673,2]
[368999791,1751430454155,-388.62578661,0.00016673,2]
[368999792,1751430454178,-300.0,0.00016685,2]
[368999793,1751430454202,-1200.0,0.00016686,2]
[368999794,1751430454224,-300.0,0.00016686,2]
[368999795,1751430454248,-300.0,0.00016686,2]
[368999796,1751430454271,-804.72,0.00016687,3]
[368999797,1751430454294,-402.36,0.00016687,3]
[368999798,1751430454317,-201.18,0.00016687,3]
[368999799,1751430454339,-414.48231211,0.00016687,3]
[368999804,1751430548173,-391.83603735,0.00016595,2]
[368999805,1751430548194,-1250.78799922,0.00016673,2]
[368999806,1751430548214,-4582.0,0.00016687,2]
[368999807,1751430548235,-300.0,0.00016687,2]
[368999808,1751430548256,-189.05768789,0.00016687,3]
[368999809,1751430548276,-500.0,0.00016688,2]
[368999810,1751430548297,-500.0,0.00016688,2]
[368999811,1751430548319,-500.0,0.00016688,2]
[368999812,1751430548339,-160.07662717,0.00016688,2]
[368999813,1751430548363,-500.0,0.00016688,2]
[368999814,1751430548386,-500.0,0.00016688,2]
[368999815,1751430548408,-500.0,0.00016688,2]
[368999816,1751430548431,-500.0,0.00016688,2]
[368999817,1751430548453,-500.0,0.00016688,2]
[368999818,1751430548475,-500.0,0.00016688,2]
[368999819,1751430548496,-192.24238793,0.00016688,2]
[368999820,1751430548517,-278.7936615,0.00016688,2]
[368999821,1751430548538,-500.0,0.00016688,2]
[368999822,1751430548561,-500.0,0.00016688,2]
[368999823,1751430548585,-500.0,0.00016688,2]
[368999824,1751430548607,-500.0,0.00016688,2]
[368999825,1751430548629,-500.0,0.00016688,2]
[368999826,1751430548650,-500.0,0.00016688,2]
[368999827,1751430548673,-500.0,0.00016688,2]
[368999828,1751430548693,-500.0,0.00016688,2]
[368999829,1751430548714,-568.98601974,0.00016688,2]
[368999830,1751430548735,-500.0,0.00016688,2]
[368999831,1751430548754,-500.0,0.00016688,2]
[368999832,1751430548775,-500.0,0.00016688,2]
[368999833,1751430548798,-819.7,0.00016694,2]
[368999834,1751430548819,-460.0,0.00016694,2]
[368999835,1751430548839,-460.0,0.00016694,2]
[368999836,1751430548860,-460.0,0.00016694,2]
[368999837,1751430548880,-460.0,0.00016694,2]
[368999838,1751430548901,-460.0,0.00016694,2]
[368999839,1751430548925,-460.0,0.00016694,2]
[368999840,1751430548947,-460.0,0.00016694,2]
[368999841,1751430548969,-463.96,0.00016694,2]
[368999842,1751430548990,-460.0,0.00016695,2]
[368999843,1751430549011,-574.52,0.00016695,2]
[368999844,1751430549031,-460.0,0.00016695,2]
[368999845,1751430549051,-460.0,0.00016695,2]
[368999846,1751430549071,-358.00614738,0.00016695,2]
[368999847,1751430549092,-464.86,0.00016695,2]
[368999848,1751430549112,-460.0,0.00016695,2]
[368999849,1751430549135,-460.0,0.00016695,2]
[368999850,1751430549155,-520.95,0.00016695,2]
[368999851,1751430549176,-460.0,0.00016695,2]
[368999852,1751430549197,-460.0,0.00016695,2]
[368999853,1751430549217,-293.32673143,0.00016695,2]
[368999854,1751430549238,-532.14,0.00016695,2]
[368999855,1751430549259,-460.0,0.00016695,2]
[368999856,1751430549281,-460.0,0.00016695,2]
[368999857,1751430549302,-460.0,0.00016695,2]
[368999858,1751430549325,-460.0,0.00016695,2]
[368999859,1751430549348,-460.0,0.00016695,2]
[368999860,1751430549370,-460.0,0.00016695,2]
[368999861,1751430549391,-460.0,0.00016695,2]
[368999862,1751430549411,-463.08360126,0.00016695,2]
[368999863,1751430549432,-460.0,0.00016695,2]
[368999864,1751430549452,-460.0,0.00016695,2]
[368999865,1751430549473,-460.0,0.00016695,2]
[368999866,1751430549494,-460.0,0.00016695,2]
[368999867,1751430549516,-460.0,0.00016695,2]
[368999868,1751430549536,-460.0,0.00016695,2]
[368999869,1751430549557,-460.0,0.00016695,2]
[368999870,1751430549579,-460.0,0.00016695,2]
[368999871,1751430549603,-460.0,0.00016695,2]
[368999872,1751430549624,-460.0,0.00016695,2]
[368999873,1751430549648,-460.0,0.00016695,2]
[368999874,1751430549790,-460.0,0.00016695,2]
[368999875,1751430549813,-460.0,0.00016695,2]
[368999876,1751430549838,-460.0,0.00016695,2]
[368999877,1751430549861,-460.0,0.00016695,2]
[368999878,1751430549884,-460.0,0.00016695,2]
[368999879,1751430549907,-460.0,0.00016695,2]
[368999880,1751430549929,-460.0,0.00016695,2]
[368999881,1751430549952,-460.0,0.00016695,2]
[368999882,1751430549974,-461.12419687,0.00016695,2]
[368999883,1751430549997,-460.0,0.00016695,2]
[368999884,1751430550021,-460.85431864,0.00016695,2]
[368999885,1751430550045,-399.93822844,0.00016695,2]
[368999886,1751430550066,-291.6397487,0.00016695,2]
[368999887,1751430550103,-268.99013096,0.00016696,2]
[368999888,1751430550128,-427.17076621,0.00016696,2]
[368999889,1751430550151,-500.0,0.00016696,2]
[368999890,1751430550174,-372.25898289,0.00016696,2]
[368999891,1751430550199,-188.29309167,0.00016696,2]
[368999892,1751430550221,-460.0,0.00016696,2]
[368999893,1751430550243,-460.0,0.00016696,2]
[368999894,1751430550264,-460.0,0.00016696,2]
[368999895,1751430550286,-460.0,0.00016696,2]
[368999896,1751430550307,-460.0,0.00016696,2]
[368999897,1751430550328,-460.0,0.00016696,2]
[368999898,1751430550349,-460.0,0.00016696,2]
[368999899,1751430550371,-460.0,0.00016696,2]
[368999900,1751430550392,-460.0,0.00016696,2]
[368999901,1751430550413,-460.0,0.00016696,2]
[368999902,1751430550436,-460.0,0.00016696,2]
[368999903,1751430550457,-460.0,0.00016696,2]
[368999904,1751430550479,-251.70973992,0.00016696,2]
[368999905,1751430550502,-422.59,0.00016696,2]
[368999906,1751430550524,-460.0,0.00016696,2]
[368999907,1751430550546,-296.92422535,0.00016696,2]
[368999908,1751430550567,-460.0,0.00016696,2]
[368999909,1751430550593,-802.51,0.00016696,2]
[368999910,1751430550615,-460.0,0.00016696,2]
[368999911,1751430550636,-460.0,0.00016696,2]
[368999912,1751430550658,-460.0,0.00016696,2]
[368999913,1751430550679,-460.0,0.00016696,2]
[368999914,1751430550700,-460.0,0.00016696,2]
[368999915,1751430550721,-460.0,0.00016696,2]
[368999916,1751430550750,-460.0,0.00016696,2]
[368999917,1751430550772,-460.0,0.00016696,2]
[368999918,1751430550793,-460.0,0.00016696,2]
[368999919,1751430550814,-460.0,0.00016696,2]
[368999920,1751430550834,-312.34907974,0.00016696,2]
[368999921,1751430550858,-312.1468531,0.00016696,2]
[368999922,1751430550878,-263.28257756,0.00016696,2]
[368999923,1751430550901,-460.0,0.00016696,2]
[368999924,1751430550922,-460.0,0.00016696,2]
[368999925,1751430550945,-460.0,0.00016696,2]
[368999926,1751430550966,-460.0,0.00016696,2]
[368999927,1751430550987,-295634.22522132,0.00016697,2]
[368999928,1751430555204,-671.10764911,0.00016697,2]
[368999929,1751430562223,-293.88734876,0.00016695,2]
[368999930,1751430565107,-166.11265124,0.00016695,2]
[368999931,1751430565130,-460.0,0.00016695,2]
[368999932,1751430565151,-460.0,0.00016696,2]
[368999933,1751430565176,-11260.13343727,0.00016697,2]
[368999934,1751430571661,24900.0,0.00015865,2]
[368999962,1751430632473,-289.36986443,0.00016693,2]
[368999964,1751430632483,-118.59654575,0.00016694,2]
[368999968,1751430632585,-313.73916419,0.00016694,2]
[368999969,1751430632647,-27.66429006,0.00016694,2]
[368999970,1751430632656,-460.0,0.00016694,2]
[368999971,1751430632666,-144.32558523,0.00016694,2]
[368999972,1751430632678,-315.67441477,0.00016694,2]
[368999973,1751430632688,-642.0,0.00016694,2]
[368999974,1751430632697,-300.0,0.00016694,2]
[368999975,1751430632707,-1369.44,0.00016694,2]
[368999976,1751430632716,-460.0,0.00016694,2]
[368999977,1751430632725,-465.80470977,0.00016694,2]
[368999978,1751430632735,-460.0,0.00016695,2]
[368999979,1751430632749,-460.0,0.00016695,2]
[368999980,1751430632762,-79.87646964,0.00016695,2]
[368999986,1751430638397,-460.0,0.00016694,2]
[368999987,1751430638409,-380.12353036,0.00016695,2]
[368999988,1751430638422,-460.0,0.00016695,2]
[368999989,1751430638433,-460.0,0.00016695,2]
[368999990,1751430638445,-500.0,0.00016695,2]
[368999991,1751430638456,-460.0,0.00016695,2]
[368999992,1751430638467,-460.0,0.00016695,2]
[368999993,1751430638479,-460.0,0.00016695,2]
[368999994,1751430638490,-460.0,0.00016695,2]
[368999995,1751430638501,-460.0,0.00016695,2]
[368999996,1751430638512,-460.0,0.00016695,2]
[368999997,1751430638524,-461.67174971,0.00016695,2]
[368999998,1751430638535,-460.0,0.00016695,2]
[368999999,1751430638547,-460.0,0.00016695,2]
[369000000,1751430638559,-460.0,0.00016695,2]
[369000001,1751430638570,-634.83,0.00016695,2]
[369000002,1751430638581,-556.91,0.00016695,2]
[369000003,1751430638591,-460.0,0.00016695,2]
[369000004,1751430638602,-462.16770111,0.00016695,2]
[369000005,1751430638616,-460.0,0.00016696,2]
[369000006,1751430638627,-460.0,0.00016696,2]
[369000007,1751430638638,-460.0,0.00016696,2]
[369000008,1751430638649,-460.0,0.00016696,2]
[369000009,1751430638660,-460.0,0.00016696,2]
[369000010,1751430638672,-460.0,0.00016696,2]
[369000011,1751430638684,-464.83710252,0.00016696,2]
[369000012,1751430638695,-460.0,0.00016696,2]
[369000013,1751430638707,-160.0,0.00016696,2]
[369000014,1751430638719,-1364.29,0.00016696,2]
[369000015,1751430638730,-466.06809695,0.00016696,2]
[369000016,1751430638742,-1351.95314626,0.00016697,2]
[369000017,1751430639500,-2742.27876449,0.00016697,2]
[369000018,1751430639512,-2733.53194374,0.00016697,2]
[369000019,1751430639524,-4060.35643083,0.00016697,2]
[369000020,1751430639536,-3877.64549092,0.00016697,2]
[369000021,1751430639547,-1095.2266579,0.00016697,2]
[369000022,1751430639563,-46573.54125816,0.00016697,2]
[369000023,1751430639572,-493.95120132,0.00016773,2]
[369000024,1751430639582,-460.0,0.00016795,2]
[369000025,1751430639593,-420.0,0.00016795,2]
[369000026,1751430639602,-460.0,0.00016795,2]
[369000027,1751430639613,-460.0,0.00016795,2]
[369000028,1751430639623,-460.0,0.00016795,2]
[369000029,1751430639632,-460.0,0.00016795,2]
[369000030,1751430639642,-587.84,0.00016795,2]
[369000031,1751430639652,-460.0,0.00016795,2]
[369000032,1751430639661,-460.0,0.00016795,2]
[369000033,1751430639671,-460.0,0.00016795,2]
[369000034,1751430639680,-460.0,0.00016795,2]
[369000035,1751430639690,-460.0,0.00016795,2]
[369000036,1751430639699,-460.0,0.00016795,2]
[369000037,1751430639708,-460.0,0.00016795,2]
[369000038,1751430639718,-460.0,0.00016795,2]
[369000039,1751430639726,-460.0,0.00016795,2]
[369000040,1751430639735,-460.0,0.00016795,2]
[369000041,1751430639745,-460.0,0.00016795,2]
[369000042,1751430639754,-460.0,0.00016795,2]
[369000043,1751430639763,-460.0,0.00016795,2]
[369000044,1751430639773,-460.0,0.00016795,2]
[369000045,1751430639783,-460.0,0.00016795,2]
[369000046,1751430639792,-460.0,0.00016795,2]
[369000047,1751430639801,-460.0,0.00016795,2]
[369000048,1751430639810,-460.0,0.00016795,2]
[369000049,1751430639820,-500.0,0.00016795,2]
[369000050,1751430639829,-278.43938757,0.00016796,2]
[369000051,1751430639838,-460.0,0.00016796,2]
[369000052,1751430639847,-460.0,0.00016796,2]
[369000053,1751430639856,-460.0,0.00016796,2]
[369000054,1751430639866,-460.0,0.00016796,2]
[369000055,1751430639875,-466.28939004,0.00016796,2]
[369000056,1751430639884,-460.0,0.00016797,2]
[369000057,1751430639894,-460.0,0.00016797,2]
[369000058,1751430639903,-460.0,0.00016797,2]
[369000059,1751430639912,-460.0,0.00016797,2]
[369000060,1751430639921,-460.0,0.00016797,2]
[369000061,1751430639931,-460.0,0.00016797,2]
[369000062,1751430639939,-460.0,0.00016968,2]
[369000063,1751430639949,-460.0,0.00016968,2]
[369000064,1751430639958,-463.96,0.00016968,2]
[369000065,1751430639967,-591.05315351,0.00016968,2]
[369000066,1751430639977,-460.0,0.00016968,2]
[369000067,1751430639986,-1369.44,0.00016968,2]
[369000068,1751430639996,-460.0,0.00016968,2]
[369000069,1751430640006,-258.0030354,0.00016969,2]
[369000070,1751430640015,-460.0,0.00016969,2]
[369000071,1751430640024,-460.0,0.00016969,2]
[369000072,1751430640034,-460.0,0.00016969,2]
[369000073,1751430640043,-465.10341813,0.00016969,2]
[369000074,1751430640052,-460.0,0.00016969,2]
[369000075,1751430640062,-460.0,0.00016969,2]
[369000076,1751430640071,-460.0,0.00016969,2]
[369000077,1751430640080,-550.03,0.00016969,2]
[369000079,1751430640090,-460.0,0.00016969,2]
[369000081,1751430640099,-460.0,0.00016969,2]
[369000083,1751430640109,-460.0,0.00016969,2]
[369000085,1751430640118,-460.0,0.00016969,2]
[369000086,1751430640127,-460.0,0.00016969,2]
[369000087,1751430640136,-460.0,0.00016969,2]
[369000088,1751430640146,-460.0,0.00016969,2]
[369000089,1751430640155,-233.96184154,0.00016969,2]
[369000090,1751430640165,-460.0,0.00016969,2]
[369000091,1751430640174,-460.0,0.00016969,2]
[369000092,1751430640183,-460.0,0.00016969,2]
[369000093,1751430640192,-460.0,0.00016969,2]
[369000094,1751430640202,-460.0,0.00016969,2]
[369000095,1751430640211,-460.0,0.00016969,2]
[369000096,1751430640220,-460.0,0.00016969,2]
[369000098,1751430640229,-460.0,0.00016969,2]
[369000100,1751430640238,-634.83,0.00016969,2]
[369000101,1751430640248,-556.91,0.00016969,2]
[369000102,1751430640257,-460.0,0.0001697,2]
[369000103,1751430640267,-501.47,0.0001697,2]
[369000104,1751430640277,-469.38975416,0.0001697,2]
[369000105,1751430640286,-802.51,0.0001697,2]
[369000106,1751430640296,-460.0,0.0001697,2]
[369000107,1751430640306,-460.0,0.0001697,2]
[369000108,1751430640315,-460.0,0.0001697,2]
[369000109,1751430640324,-460.0,0.0001697,2]
[369000110,1751430640334,-460.0,0.0001697,2]
[369000111,1751430640344,-460.0,0.0001697,2]
[369000112,1751430640353,-460.0,0.0001697,2]
[369000113,1751430640363,-460.0,0.0001697,2]
[369000114,1751430640372,-460.0,0.0001697,2]
[369000115,1751430640382,-460.0,0.0001697,2]